[Event "VII Open Internacional Quart de Poblet"]
[Site "Quart de Poblet, Spain"]
[Date "2019.08.05"]
[Round "1.7"]
[White "Kovacevic, Slobodan"]
[Black "Vila Tormo, Eduardo"]
[Result "1-0"]
[TimeControl "90m +30s por jugada"]
[WhiteFideId "902152"]
[BlackFideId "32063989"]
[WhiteElo "2252"]
[BlackElo "1620"]

1. d4 {[%clk 01:30:49]} {[%emt 00:00:14]} Nf6 {[%clk 01:30:48]} {[%emt
00:00:10]} 2. Bf4 {[%clk 01:31:03]} {[%emt 00:00:29]} e6 {[%clk 01:30:42]}
{[%emt 00:00:23]} 3. Nf3 {[%clk 01:30:24]} {[%emt 00:01:39]} Nc6 {[%clk
01:30:02]} {[%emt 00:00:42]} 4. e3 {[%clk 01:29:48]} {[%emt 00:01:05]} d5
{[%clk 01:28:45]} {[%emt 00:01:51]} 5. c4 {[%clk 01:28:59]} {[%emt 00:01:14]}
Bd6 {[%clk 01:24:30]} {[%emt 00:05:15]} 6. Bg3 {[%clk 01:28:22]} {[%emt
00:00:35]} Bxg3 {[%clk 01:15:09]} {[%emt 00:10:28]} 7. hxg3 {[%clk 01:28:44]}
Bd7 {[%clk 01:05:24]} {[%emt 00:10:20]} 8. Nc3 {[%clk 01:27:43]} {[%emt
00:01:34]} Qe7 {[%clk 01:02:53]} {[%emt 00:02:39]} 9. a3 {[%clk 01:23:11]}
{[%emt 00:05:27]} a5 {[%clk 00:56:10]} {[%emt 00:07:06]} 10. Rc1 {[%clk
01:22:49]} {[%emt 00:00:52]} Na7 {[%clk 00:46:25]} {[%emt 00:09:43]} 11. Ne5
{[%clk 01:21:41]} {[%emt 00:01:41]} c6 {[%clk 00:44:32]} {[%emt 00:02:22]} 12.
c5 {[%clk 01:21:33]} {[%emt 00:00:35]} O-O-O {[%clk 00:41:07]} {[%emt
00:05:07]} 13. Qa4 {[%clk 01:20:06]} {[%emt 00:01:11]} Ne4 {[%clk 00:38:31]}
{[%emt 00:02:41]} 14. Nxe4 {[%clk 01:19:42]} {[%emt 00:00:54]} dxe4 {[%clk
00:38:58]} {[%emt 00:00:39]} 15. Qxa5 {[%clk 01:20:04]} Kb8 {[%clk 00:32:58]}
{[%emt 00:06:01]} 16. Rc3 {[%clk 01:19:16]} {[%emt 00:01:12]} Bc8 {[%clk
00:29:42]} {[%emt 00:03:59]} 17. Rb3 {[%clk 01:14:03]} {[%emt 00:05:38]} f6
{[%clk 00:28:35]} {[%emt 00:01:51]} 18. Nc4 {[%clk 01:14:18]} {[%emt 00:00:04]}
Qc7 {[%clk 00:26:51]} {[%emt 00:02:09]} 19. Nb6 {[%clk 01:13:58]} {[%emt
00:01:25]} Qf7 {[%clk 00:17:53]} {[%emt 00:08:52]} 20. Bc4 {[%clk 01:14:04]}
{[%emt 00:00:24]} Rhe8 {[%clk 00:09:48]} {[%emt 00:08:46]} 21. Rb4 {[%clk
01:14:22]} {[%emt 00:00:08]} Re7 {[%clk 00:08:49]} {[%emt 00:01:27]} 22. Rxh7
{[%clk 01:12:00]} {[%emt 00:02:47]} Qg6 {[%clk 00:04:02]} {[%emt 00:05:17]} 23.
Rh4 {[%clk 01:12:16]} {[%emt 00:00:29]} e5 {[%clk 00:03:01]} {[%emt 00:01:55]}
24. Ra4 {[%clk 01:12:19]} Nb5 {[%clk 00:02:33]} {[%emt 00:00:47]} 25. d5 {[%clk
01:12:20]} {[%emt 00:00:35]} Qg5 {[%clk 00:01:07]} {[%emt 00:01:49]} 26. Bxb5
{[%clk 01:12:17]} {[%emt 00:00:36]} cxb5 {[%clk 00:01:14]} {[%emt 00:00:24]} 27.
d6 {[%clk 01:12:29]} {[%emt 00:00:14]} 1-0

[Event "VII Open Internacional Quart de Poblet"]
[Site "Quart de Poblet, Spain"]
[Date "2019.08.05"]
[Round "1.8"]
[White "Fernandez Lara, Vicente"]
[Black "Davtyan, David Arm."]
[Result "0-1"]
[TimeControl "90m +30s por jugada"]
[WhiteFideId "22281363"]
[BlackFideId "13310046"]
[WhiteElo "1614"]
[BlackElo "2249"]

1. d4 {[%clk 01:29:50]} Nf6 {[%clk 01:30:51]} {[%emt 00:00:34]} 2. c4 {[%clk
01:30:00]} {[%emt 00:00:04]} c5 {[%clk 01:31:13]} {[%emt 00:00:17]} 3. Nf3
{[%clk 01:30:02]} {[%emt 00:00:10]} cxd4 {[%clk 01:31:27]} {[%emt 00:00:18]} 4.
Qxd4 {[%clk 01:29:36]} {[%emt 00:01:29]} Nc6 {[%clk 01:31:45]} 5. Qd1 {[%clk
01:29:45]} {[%emt 00:00:03]} g6 {[%clk 01:31:33]} {[%emt 00:00:44]} 6. Nc3
{[%clk 01:29:56]} {[%emt 00:00:12]} Bg7 {[%clk 01:31:57]} {[%emt 00:00:12]} 7.
e3 {[%clk 01:30:10]} {[%emt 00:00:13]} O-O {[%clk 01:32:08]} {[%emt 00:00:15]}
8. Be2 {[%clk 01:30:30]} {[%emt 00:00:32]} d6 {[%clk 01:32:04]} {[%emt
00:00:14]} 9. h3 {[%clk 01:30:36]} {[%emt 00:00:38]} Bd7 {[%clk 01:31:16]}
{[%emt 00:01:05]} 10. O-O {[%clk 01:30:33]} {[%emt 00:00:27]} Rc8 {[%clk
01:29:33]} {[%emt 00:02:18]} 11. Bd2 {[%clk 01:27:51]} {[%emt 00:03:59]} Bf5
{[%clk 01:18:51]} {[%emt 00:10:26]} 12. a3 {[%clk 01:25:52]} {[%emt 00:02:30]}
Na5 {[%clk 01:15:43]} {[%emt 00:03:44]} 13. Qa4 {[%clk 01:20:46]} {[%emt
00:05:52]} Be6 {[%clk 01:14:52]} {[%emt 00:01:44]} 14. Nd5 {[%clk 01:20:31]}
Nxc4 {[%clk 01:14:36]} {[%emt 00:01:24]} 15. Nxf6+ {[%clk 01:20:16]} {[%emt
00:00:10]} Bxf6 {[%clk 01:14:22]} {[%emt 00:00:38]} 16. Bxc4 {[%clk 01:20:26]}
{[%emt 00:00:55]} Bxc4 {[%clk 01:13:33]} {[%emt 00:00:54]} 17. Rfe1 {[%clk
01:17:00]} {[%emt 00:04:14]} b5 {[%clk 01:10:37]} {[%emt 00:03:12]} 18. Qb4
{[%clk 01:16:57]} {[%emt 00:00:19]} a5 {[%clk 01:10:40]} {[%emt 00:00:51]} 19.
Qxa5 {[%clk 01:16:35]} {[%emt 00:00:36]} Qxa5 {[%clk 01:11:02]} {[%emt
00:00:06]} 20. Bxa5 {[%clk 01:16:45]} {[%emt 00:00:14]} Bxb2 {[%clk 01:11:26]}
{[%emt 00:00:12]} 21. Rab1 {[%clk 01:16:36]} {[%emt 00:00:33]} Bxa3 {[%clk
01:11:48]} {[%emt 00:00:35]} 22. Nd4 {[%clk 01:15:39]} {[%emt 00:01:01]} Ra8
{[%clk 01:11:03]} {[%emt 00:01:16]} 23. Bb4 {[%clk 01:15:26]} {[%emt 00:00:40]}
Bxb4 {[%clk 01:08:58]} {[%emt 00:02:35]} 24. Rxb4 {[%clk 01:15:36]} {[%emt
00:00:37]} Ra4 {[%clk 01:09:17]} 25. Reb1 {[%clk 01:15:55]} {[%emt 00:00:12]}
Rxb4 {[%clk 01:09:34]} {[%emt 00:00:06]} 26. Rxb4 {[%clk 01:16:00]} {[%emt
00:00:38]} d5 {[%clk 01:09:47]} {[%emt 00:00:09]} 27. f4 {[%clk 01:15:38]}
{[%emt 00:00:54]} Ra8 {[%clk 01:09:29]} {[%emt 00:00:49]} 28. Kf2 {[%clk
01:15:06]} {[%emt 00:00:56]} f6 {[%clk 01:09:43]} {[%emt 00:00:16]} 29. Kf3
{[%clk 01:15:11]} {[%emt 00:00:22]} Kf7 {[%clk 01:09:51]} {[%emt 00:00:50]} 30.
g3 {[%clk 01:15:16]} {[%emt 00:00:04]} Ra6 {[%clk 01:08:50]} {[%emt 00:01:25]}
31. g4 {[%clk 01:14:56]} {[%emt 00:01:02]} e5 {[%clk 01:09:01]} {[%emt
00:00:19]} 32. fxe5 {[%clk 01:11:49]} {[%emt 00:03:28]} fxe5 {[%clk 01:09:15]}
{[%emt 00:00:13]} 33. Nc2 {[%clk 01:11:16]} {[%emt 00:01:08]} Ra2 {[%clk
01:09:09]} {[%emt 00:00:46]} 34. Ne1 {[%clk 01:10:56]} {[%emt 00:00:34]} Ke6
{[%clk 01:08:56]} {[%emt 00:00:45]} 35. Kg3 {[%clk 01:10:22]} {[%emt 00:01:07]}
Re2 {[%clk 01:08:40]} {[%emt 00:00:43]} 36. Ng2 {[%clk 01:10:20]} {[%emt
00:01:12]} Kd6 {[%clk 01:09:02]} 37. Kf3 {[%clk 01:09:47]} {[%emt 00:01:06]}
Ra2 {[%clk 01:09:25]} 38. Kg3 {[%clk 01:09:42]} {[%emt 00:00:29]} Kc5 {[%clk
01:09:43]} 39. Rb1 {[%clk 01:09:50]} {[%emt 00:00:44]} b4 {[%clk 01:09:54]}
{[%emt 00:00:16]} 40. Nh4 {[%clk 01:09:42]} {[%emt 00:00:06]} Re2 {[%clk
01:08:54]} {[%emt 00:01:37]} 41. Ng2 {[%clk 01:09:39]} {[%emt 00:00:27]} b3
{[%clk 01:09:06]} {[%emt 00:00:26]} 0-1

[Event "VII Open Internacional Quart de Poblet"]
[Site "Quart de Poblet, Spain"]
[Date "2019.08.05"]
[Round "1.9"]
[White "Galvan, Jesus"]
[Black "Movsisyan, Tigran"]
[Result "1-0"]
[TimeControl "90m +30s por jugada"]
[WhiteFideId "3800458"]
[BlackFideId "24581364"]
[WhiteElo "2220"]
[BlackElo "1594"]

1. d4 {[%clk 01:30:58]} {[%emt 00:34:44]} d5 {[%clk 01:30:58]} {[%emt
00:00:02]} 2. c4 {[%clk 01:31:24]} {[%emt 00:00:04]} e6 {[%clk 01:31:16]}
{[%emt 00:00:13]} 3. Nc3 {[%clk 01:31:48]} {[%emt 00:00:06]} Be7 {[%clk
01:31:16]} {[%emt 00:00:29]} 4. Nf3 {[%clk 01:30:49]} {[%emt 00:01:28]} Nf6
{[%clk 01:31:05]} {[%emt 00:00:42]} 5. Bg5 {[%clk 01:30:55]} {[%emt 00:00:24]}
Nbd7 {[%clk 01:30:14]} {[%emt 00:01:21]} 6. e3 {[%clk 01:31:20]} {[%emt
00:00:06]} O-O {[%clk 01:30:21]} {[%emt 00:00:22]} 7. Qc2 {[%clk 01:31:30]}
{[%emt 00:00:19]} h6 {[%clk 01:29:04]} {[%emt 00:01:48]} 8. h4 {[%clk
01:29:16]} {[%emt 00:02:44]} b6 {[%clk 01:18:59]} {[%emt 00:10:35]} 9. cxd5
{[%clk 01:26:17]} {[%emt 00:03:29]} exd5 {[%clk 01:18:55]} {[%emt 00:00:35]} 10.
g4 {[%clk 01:20:12]} {[%emt 00:06:35]} Nxg4 {[%clk 01:09:13]} {[%emt 00:10:12]}
11. Bd3 {[%clk 01:00:58]} {[%emt 00:19:44]} Bb7 {[%clk 01:04:01]} {[%emt
00:05:42]} 12. O-O-O {[%clk 01:01:03]} {[%emt 00:00:24]} h5 {[%clk 01:03:31]}
{[%emt 00:01:01]} 13. Rdg1 {[%clk 00:57:47]} {[%emt 00:03:46]} c5 {[%clk
00:56:01]} {[%emt 00:08:00]} 14. Bf5 {[%clk 00:55:16]} {[%emt 00:03:01]} cxd4
{[%clk 00:52:32]} {[%emt 00:03:59]} 15. exd4 {[%clk 00:46:20]} {[%emt
00:09:25]} Ndf6 {[%clk 00:51:38]} {[%emt 00:01:24]} 16. Ne5 {[%clk 00:43:15]}
{[%emt 00:03:36]} Nxe5 {[%clk 00:51:12]} {[%emt 00:00:55]} 17. dxe5 {[%clk
00:43:39]} {[%emt 00:00:05]} Ng4 {[%clk 00:50:41]} {[%emt 00:01:02]} 18. Kb1
{[%clk 00:30:22]} {[%emt 00:13:47]} d4 {[%clk 00:42:24]} {[%emt 00:08:47]} 19.
Ne4 {[%clk 00:28:32]} {[%emt 00:02:21]} d3 {[%clk 00:41:42]} {[%emt 00:01:12]}
20. Qd2 {[%clk 00:26:38]} {[%emt 00:02:24]} Bxg5 {[%clk 00:35:12]} {[%emt
00:07:00]} 21. hxg5 {[%clk 00:26:36]} {[%emt 00:00:32]} g6 {[%clk 00:35:29]}
{[%emt 00:00:13]} 22. Rxg4 {[%clk 00:26:33]} {[%emt 00:00:33]} gxf5 {[%clk
00:27:43]} {[%emt 00:08:17]} 23. Nf6+ {[%clk 00:26:21]} {[%emt 00:00:41]} Kg7
{[%clk 00:28:00]} {[%emt 00:00:13]} 24. Nxh5+ {[%clk 00:14:45]} {[%emt
00:12:07]} Kg6 {[%clk 00:24:45]} {[%emt 00:03:45]} 25. Nf4+ {[%clk 00:12:07]}
{[%emt 00:03:08]} Kg7 {[%clk 00:24:54]} {[%emt 00:00:21]} 26. Rh6 {[%clk
00:02:57]} {[%emt 00:09:40]} fxg4 {[%clk 00:22:21]} {[%emt 00:03:02]} 27. Nh5+
{[%clk 00:00:46]} {[%emt 00:02:42]} Kg8 {[%clk 00:22:41]} {[%emt 00:00:10]} 28.
f3 {[%clk 00:00:43]} {[%emt 00:00:33]} Bxf3 {[%clk 00:17:43]} {[%emt 00:05:27]}
29. Rh8+ {[%clk 00:00:56]} {[%emt 00:00:17]} Kxh8 {[%clk 00:16:48]} {[%emt
00:01:25]} 30. g6 {[%clk 00:01:26]} 1-0

[Event "VII Open Internacional Quart de Poblet"]
[Site "Quart de Poblet, Spain"]
[Date "2019.08.06"]
[Round "2.1"]
[White "Martinez Villena, David"]
[Black "Cruz Lledo, Pablo"]
[Result "0-1"]
[TimeControl "90m +30s por jugada"]
[WhiteFideId "2284022"]
[BlackFideId "2297361"]
[WhiteElo "2006"]
[BlackElo "2445"]

1. e4 {[%clk 01:30:45]} {[%emt 00:00:11]} c6 {[%clk 01:26:11]} {[%emt
00:04:49]} 2. d4 {[%clk 01:31:04]} {[%emt 00:00:11]} d5 {[%clk 01:26:36]}
{[%emt 00:00:08]} 3. exd5 {[%clk 01:31:19]} {[%emt 00:00:11]} cxd5 {[%clk
01:26:55]} {[%emt 00:00:16]} 4. Bd3 {[%clk 01:31:40]} {[%emt 00:00:10]} Nc6
{[%clk 01:27:12]} {[%emt 00:00:10]} 5. c3 {[%clk 01:31:34]} {[%emt 00:00:36]}
Nf6 {[%clk 01:23:33]} {[%emt 00:04:07]} 6. Bf4 {[%clk 01:30:36]} {[%emt
00:01:33]} g6 {[%clk 01:23:43]} {[%emt 00:00:14]} 7. Nd2 {[%clk 01:29:28]}
{[%emt 00:01:39]} Bg7 {[%clk 01:24:06]} {[%emt 00:00:10]} 8. h3 {[%clk
01:23:18]} {[%emt 00:06:37]} O-O {[%clk 01:17:57]} {[%emt 00:06:39]} 9. Ngf3
{[%clk 01:23:25]} {[%emt 00:00:24]} Nd7 {[%clk 01:18:00]} {[%emt 00:00:30]} 10.
O-O {[%clk 01:21:57]} {[%emt 00:01:53]} e5 {[%clk 01:18:22]} {[%emt 00:00:08]}
11. dxe5 {[%clk 01:20:08]} {[%emt 00:02:20]} Ndxe5 {[%clk 01:18:45]} {[%emt
00:00:07]} 12. Bc2 {[%clk 01:18:09]} {[%emt 00:02:28]} Qb6 {[%clk 01:06:35]}
{[%emt 00:12:40]} 13. Nxe5 {[%clk 01:06:54]} {[%emt 00:11:45]} Nxe5 {[%clk
01:06:54]} {[%emt 00:00:11]} 14. Nb3 {[%clk 01:06:40]} {[%emt 00:00:44]} Nc4
{[%clk 01:05:39]} {[%emt 00:01:54]} 15. Rb1 {[%clk 01:04:29]} {[%emt 00:02:37]}
Be6 {[%clk 01:04:55]} {[%emt 00:01:08]} 16. Nd4 {[%clk 00:58:37]} {[%emt
00:06:24]} Rac8 {[%clk 01:04:36]} {[%emt 00:00:50]} 17. Bb3 {[%clk 00:31:12]}
{[%emt 00:27:54]} a5 {[%clk 00:54:38]} {[%emt 00:10:32]} 18. Bxc4 {[%clk
00:25:57]} {[%emt 00:05:45]} dxc4 {[%clk 00:54:59]} {[%emt 00:00:07]} 19. Nxe6
{[%clk 00:25:32]} {[%emt 00:00:53]} Qxe6 {[%clk 00:55:12]} {[%emt 00:00:16]} 20.
Re1 {[%clk 00:22:06]} {[%emt 00:04:01]} Qf5 {[%clk 00:55:14]} {[%emt 00:00:32]}
21. Qg4 {[%clk 00:22:22]} {[%emt 00:00:05]} Qb5 {[%clk 00:51:37]} {[%emt
00:04:07]} 22. Qg5 {[%clk 00:19:22]} {[%emt 00:03:30]} Rc5 {[%clk 00:40:39]}
{[%emt 00:11:28]} 23. Qg3 {[%clk 00:17:16]} {[%emt 00:02:36]} Rd5 {[%clk
00:40:27]} {[%emt 00:00:47]} 24. Qf3 {[%clk 00:13:10]} {[%emt 00:04:30]} Rfd8
{[%clk 00:32:20]} {[%emt 00:08:36]} 25. Qe4 {[%clk 00:08:19]} {[%emt 00:05:23]}
Qc6 {[%clk 00:30:58]} {[%emt 00:01:52]} 26. Be3 {[%clk 00:07:22]} {[%emt
00:01:27]} h6 {[%clk 00:26:50]} {[%emt 00:04:37]} 27. Qf3 {[%clk 00:06:54]}
{[%emt 00:00:59]} R8d7 {[%clk 00:23:08]} {[%emt 00:04:15]} 28. g3 {[%clk
00:05:12]} {[%emt 00:02:08]} Kh7 {[%clk 00:22:25]} {[%emt 00:01:13]} 29. Kh2
{[%clk 00:05:32]} {[%emt 00:00:11]} f5 {[%clk 00:22:19]} {[%emt 00:00:39]} 30.
h4 {[%clk 00:05:11]} {[%emt 00:00:48]} Rb5 {[%clk 00:19:41]} {[%emt 00:03:11]}
31. Qxc6 {[%clk 00:02:44]} {[%emt 00:02:54]} bxc6 {[%clk 00:20:04]} {[%emt
00:00:07]} 32. a4 {[%clk 00:01:36]} {[%emt 00:01:38]} Rb3 {[%clk 00:16:00]}
{[%emt 00:04:36]} 33. Rbd1 {[%clk 00:02:01]} {[%emt 00:00:05]} Rd5 {[%clk
00:13:17]} {[%emt 00:03:12]} 34. Rxd5 {[%clk 00:02:24]} {[%emt 00:00:06]} cxd5
{[%clk 00:13:45]} 35. Re2 {[%clk 00:02:47]} {[%emt 00:00:10]} Bf6 {[%clk
00:13:04]} {[%emt 00:01:14]} 36. Bc5 {[%clk 00:01:45]} {[%emt 00:01:32]} Kg7
{[%clk 00:12:46]} {[%emt 00:00:45]} 37. Kg2 {[%clk 00:01:49]} {[%emt 00:00:26]}
Kf7 {[%clk 00:12:58]} {[%emt 00:00:18]} 38. Kf1 {[%clk 00:02:07]} {[%emt
00:00:11]} g5 {[%clk 00:13:15]} {[%emt 00:00:13]} 39. hxg5 {[%clk 00:02:29]}
{[%emt 00:00:09]} hxg5 {[%clk 00:13:42]} {[%emt 00:00:05]} 40. Ke1 {[%clk
00:02:50]} {[%emt 00:00:06]} f4 {[%clk 00:13:29]} {[%emt 00:00:43]} 41. gxf4
{[%clk 00:03:00]} {[%emt 00:00:21]} gxf4 {[%clk 00:13:57]} {[%emt 00:00:05]} 42.
f3 {[%clk 00:03:17]} {[%emt 00:00:10]} Rb7 {[%clk 00:08:07]} {[%emt 00:06:19]}
43. Rh2 {[%clk 00:02:14]} {[%emt 00:01:35]} Ke6 {[%clk 00:08:11]} {[%emt
00:00:24]} 44. Ba3 {[%clk 00:01:25]} {[%emt 00:01:18]} d4 {[%clk 00:07:45]}
{[%emt 00:00:57]} 45. cxd4 {[%clk 00:01:11]} {[%emt 00:00:44]} Bxd4 {[%clk
00:08:08]} {[%emt 00:00:07]} 46. Rh6+ {[%clk 00:00:55]} {[%emt 00:00:46]} Kd5
{[%clk 00:08:18]} {[%emt 00:00:14]} 47. Rh5+ {[%clk 00:01:02]} {[%emt
00:00:32]} Be5 {[%clk 00:08:35]} {[%emt 00:00:11]} 48. Kd2 {[%clk 00:00:50]}
{[%emt 00:00:41]} Rb3 {[%clk 00:08:53]} {[%emt 00:00:12]} 49. Ke2 {[%clk
00:00:39]} {[%emt 00:00:41]} c3 {[%clk 00:09:00]} {[%emt 00:00:23]} 50. bxc3
{[%clk 00:00:35]} {[%emt 00:00:37]} Rxa3 {[%clk 00:09:22]} {[%emt 00:00:07]} 51.
c4+ {[%clk 00:00:39]} {[%emt 00:00:23]} Kd4 {[%clk 00:09:44]} {[%emt 00:00:09]}
52. Kd2 {[%clk 00:00:49]} {[%emt 00:00:20]} Rxa4 {[%emt 00:01:05]} 0-1

[Event "VII Open Internacional Quart de Poblet"]
[Site "Quart de Poblet, Spain"]
[Date "2019.08.06"]
[Round "2.2"]
[White "Sanchez Saez, Francisco"]
[Black "Balada Moreno, Jose Luis"]
[Result "1-0"]
[TimeControl "90m +30s por jugada"]
[WhiteFideId "2231743"]
[BlackFideId "2214962"]
[WhiteElo "2359"]
[BlackElo "2022"]

1. e4 {[%clk 01:27:04]} {[%emt 00:04:13]} g6 {[%clk 01:29:53]} {[%emt
00:00:52]} 2. d4 {[%clk 01:27:26]} {[%emt 00:00:40]} Bg7 {[%clk 01:30:16]} 3.
Nc3 {[%clk 01:27:51]} d6 {[%clk 01:30:32]} 4. h4 {[%clk 01:28:15]} {[%emt
00:00:03]} h5 {[%clk 01:26:45]} {[%emt 00:04:14]} 5. Bc4 {[%clk 01:28:39]}
{[%emt 00:00:13]} Bg4 {[%clk 01:20:36]} {[%emt 00:06:31]} 6. f3 {[%clk
01:26:01]} {[%emt 00:03:11]} Bd7 {[%clk 01:20:58]} {[%emt 00:00:14]} 7. Bg5
{[%clk 01:24:55]} {[%emt 00:01:28]} c5 {[%clk 01:20:03]} {[%emt 00:01:25]} 8.
dxc5 {[%clk 01:15:06]} {[%emt 00:10:20]} Bxc3+ {[%clk 01:06:35]} {[%emt
00:13:59]} 9. bxc3 {[%clk 01:15:30]} {[%emt 00:00:09]} dxc5 {[%clk 01:06:47]}
{[%emt 00:00:13]} 10. Qd5 {[%clk 01:12:07]} {[%emt 00:04:00]} Be6 {[%clk
01:06:57]} {[%emt 00:00:13]} 11. Qe5 {[%clk 00:46:56]} {[%emt 00:25:41]} Nf6
{[%clk 01:04:50]} {[%emt 00:02:38]} 12. Bxe6 {[%clk 00:46:43]} {[%emt
00:00:41]} fxe6 {[%clk 01:05:10]} {[%emt 00:00:12]} 13. Bxf6 {[%clk 00:46:11]}
{[%emt 00:01:03]} Nd7 {[%clk 00:59:17]} {[%emt 00:06:31]} 14. Qg3 {[%clk
00:39:07]} {[%emt 00:07:25]} exf6 {[%clk 00:59:10]} {[%emt 00:00:34]} 15. Qxg6+
{[%clk 00:39:02]} {[%emt 00:00:39]} Kf8 {[%clk 00:59:20]} {[%emt 00:00:19]} 16.
Rd1 {[%clk 00:38:45]} {[%emt 00:00:45]} Qe8 {[%clk 00:56:53]} {[%emt 00:03:01]}
17. Qg3 {[%clk 00:37:25]} {[%emt 00:01:50]} Ne5 {[%clk 00:53:26]} {[%emt
00:03:53]} 18. Nh3 {[%clk 00:35:52]} {[%emt 00:02:03]} Rg8 {[%clk 00:52:19]}
{[%emt 00:01:37]} 19. Ng5 {[%clk 00:24:30]} {[%emt 00:11:52]} Qb8 {[%clk
00:30:46]} {[%emt 00:22:03]} 20. f4 {[%clk 00:16:16]} {[%emt 00:08:44]} Nf7
{[%clk 00:26:44]} {[%emt 00:04:36]} 21. Nxe6+ {[%clk 00:13:39]} {[%emt
00:03:05]} Ke7 {[%clk 00:27:03]} {[%emt 00:00:36]} 22. Qd3 {[%clk 00:11:09]}
{[%emt 00:02:34]} Qc8 {[%clk 00:26:43]} {[%emt 00:00:49]} 23. Qd5 {[%clk
00:07:17]} {[%emt 00:04:37]} Qc6 {[%clk 00:19:59]} {[%emt 00:07:15]} 24. Qxc6
{[%clk 00:03:27]} {[%emt 00:04:05]} bxc6 {[%clk 00:20:22]} {[%emt 00:00:15]} 25.
Nxc5 {[%clk 00:03:55]} Rxg2 {[%clk 00:20:40]} {[%emt 00:00:16]} 26. Rd7+ {[%clk
00:03:15]} {[%emt 00:01:02]} Ke8 {[%clk 00:20:56]} {[%emt 00:00:14]} 27. Rd2
{[%clk 00:03:34]} {[%emt 00:00:08]} Rg4 {[%clk 00:21:09]} {[%emt 00:00:33]} 28.
Ke2 {[%clk 00:00:40]} {[%emt 00:03:08]} Rb8 {[%clk 00:19:41]} {[%emt 00:02:00]}
29. Kf3 {[%clk 00:00:57]} {[%emt 00:00:11]} Rb5 {[%clk 00:19:40]} {[%emt
00:00:51]} 30. Ne6 {[%clk 00:01:18]} {[%emt 00:00:11]} Ke7 {[%clk 00:19:48]}
{[%emt 00:00:03]} 31. Nd4 {[%clk 00:01:43]} {[%emt 00:00:04]} Rc5 {[%clk
00:19:40]} {[%emt 00:00:39]} 32. Nf5+ {[%clk 00:02:08]} {[%emt 00:00:06]} Ke6
{[%clk 00:19:16]} {[%emt 00:00:58]} 33. Rd3 {[%clk 00:02:21]} {[%emt 00:00:09]}
Rc4 {[%clk 00:15:21]} {[%emt 00:04:24]} 34. Rb1 {[%clk 00:02:33]} {[%emt
00:00:20]} c5 {[%clk 00:15:32]} {[%emt 00:00:18]} 35. Rb7 {[%clk 00:02:46]}
{[%emt 00:00:26]} 1-0